fUST/lending_fUST_20240728
["ID","MTS","AMOUNT","RATE_DAILY","PERIOD"]
[333452252,1722137450674,-5745.24113062,0.00013971,2]
[333452253,1722137450683,-194.46725522,0.00013972,2]
[333452254,1722137450697,-501.99856816,0.00013972,2]
[333452255,1722137450708,-506.35350831,0.00013972,2]
[333452256,1722137450718,-500.0,0.00013972,2]
[333452257,1722137450728,-414.09101843,0.00013972,2]
[333452258,1722137450739,-501.56452451,0.00013972,2]
[333452259,1722137450748,-500.0,0.00013972,2]
[333452260,1722137450758,-505.53425985,0.00013972,2]
[333452261,1722137450770,-500.0,0.00013972,2]
[333452262,1722137450781,-500.0,0.00013972,2]
[333452263,1722137450791,-500.0,0.00013972,2]
[333452264,1722137450801,-500.0,0.00013972,2]
[333452265,1722137450811,-500.0,0.00013972,2]
[333452266,1722137450821,-151.222638,0.00013972,2]
[333452267,1722137450830,-500.0,0.00013972,2]
[333452268,1722137450840,-500.0,0.00013972,2]
[333452269,1722137450849,-500.0,0.00013972,2]
[333452270,1722137450871,-506.39755018,0.00013972,2]
[333452271,1722137450881,-504.73581437,0.00013972,2]
[333452272,1722137450890,-500.0,0.00013972,2]
[333452273,1722137450900,-500.0,0.00013972,2]
[333452274,1722137450910,-500.0,0.00013972,2]
[333452275,1722137450920,-500.0,0.00013972,2]
[333452276,1722137450930,-500.0,0.00013972,2]
[333452277,1722137450940,-500.0,0.00013972,2]
[333452278,1722137450950,-500.0,0.00013972,2]
[333452279,1722137450960,-151.0,0.00013972,2]
[333452280,1722137450970,-152.530309,0.00013972,2]
[333452281,1722137450980,-500.0,0.00013972,2]
[333452282,1722137450990,-500.0,0.00013972,2]
[333452283,1722137451000,-500.0,0.00013972,2]
[333452284,1722137451010,-151.0,0.00013972,2]
[333452285,1722137451020,-151.0,0.00013972,2]
[333452286,1722137451030,-500.0,0.00013972,2]
[333452287,1722137451039,-502.93711622,0.00013972,2]
[333452288,1722137451050,-500.0,0.00013972,2]
[333452289,1722137451060,-500.0,0.00013972,2]
[333452290,1722137451069,-502.3928715,0.00013972,2]
[333452291,1722137451079,-506.94415046,0.00013972,2]
[333452292,1722137451089,-500.0,0.00013972,2]
[333452293,1722137451235,-507.51431982,0.00013972,2]
[333452294,1722137451246,-500.0,0.00013972,2]
[333452295,1722137451256,-500.0,0.00013972,2]
[333452296,1722137451265,-500.0,0.00013972,2]
[333452297,1722137451276,-500.0,0.00013972,2]
[333452298,1722137451285,-500.0,0.00013972,2]
[333452299,1722137451295,-500.0,0.00013972,2]
[333452300,1722137451305,-500.0,0.00013972,2]
[333452301,1722137451315,-500.0,0.00013972,2]
[333452302,1722137451324,-500.0,0.00013972,2]
[333452303,1722137451335,-500.0,0.00013972,2]
[333452304,1722137451345,-500.0,0.00013972,2]
[333452305,1722137451354,-500.0,0.00013972,2]
[333452306,1722137451364,-500.0,0.00013972,2]
[333452307,1722137451374,-500.0,0.00013972,2]
[333452308,1722137451385,-500.0,0.00013972,2]
[333452309,1722137451395,-500.0,0.00013972,2]
[333452310,1722137451404,-1357.7,0.00013972,2]
[333452311,1722137451413,-500.0,0.00013972,2]
[333452312,1722137451423,-500.0,0.00013972,2]
[333452313,1722137451432,-500.0,0.00013972,2]
[333452314,1722137451441,-500.0,0.00013972,2]
[333452315,1722137451451,-512.54168365,0.00013972,2]
[333452316,1722137451460,-507.30933,0.00013972,2]
[333452317,1722137451470,-500.0,0.00013972,2]
[333452318,1722137451479,-481.28072476,0.00013972,2]
[333452319,1722137451488,-500.0,0.00013972,2]
[333452320,1722137451498,-158.26250613,0.00013972,2]
[333452321,1722137451508,-500.0,0.00013972,2]
[333452322,1722137451519,-151.0,0.00013972,2]
[333452323,1722137451529,-151.0,0.00013972,2]
[333452324,1722137451540,-500.0,0.00013972,2]
[333452325,1722137451550,-258.635873,0.00013972,2]
[333452326,1722137451560,-511.05725269,0.00013972,2]
[333452327,1722137451574,-500.0,0.00013972,2]
[333452328,1722137451584,-500.0,0.00013972,2]
[333452329,1722137451593,-500.0,0.00013972,2]
[333452330,1722137451603,-500.0,0.00013972,2]
[333452331,1722137451612,-500.0,0.00013972,2]
[333452332,1722137451621,-500.0,0.00013972,2]
[333452333,1722137451630,-500.0,0.00013972,2]
[333452334,1722137451639,-500.0,0.00013972,2]
[333452335,1722137451648,-500.0,0.00013972,2]
[333452336,1722137451658,-500.0,0.00013972,2]
[333452337,1722137451671,-500.0,0.00013972,2]
[333452338,1722137451680,-500.0,0.00013972,2]
[333452339,1722137451692,-500.0,0.00013972,2]
[333452340,1722137451702,-151.0,0.00013972,2]
[333452341,1722137451712,-500.0,0.00013972,2]
[333452342,1722137451722,-151.0,0.00013972,2]
[333452343,1722137451732,-151.0,0.00013972,2]
[333452344,1722137451742,-500.0,0.00013972,2]
[333452345,1722137451752,-500.0,0.00013972,2]
[333452346,1722137451762,-500.0,0.00013972,2]
[333452347,1722137451771,-500.0,0.00013972,2]
[333452348,1722137451782,-618.48214913,0.00013972,2]
[333452349,1722137451792,-500.0,0.00013972,2]
[333452350,1722137451802,-526.68610399,0.00013972,2]
[333452351,1722137451813,-510.45765551,0.00013972,2]
[333452352,1722137451823,-500.0,0.00013972,2]
[333452353,1722137451833,-500.0,0.00013972,2]
[333452354,1722137451843,-500.0,0.00013972,2]
[333452355,1722137451853,-508.08730958,0.00013972,2]
[333452356,1722137451863,-500.0,0.00013972,2]
[333452357,1722137451873,-276.02346293,0.00013972,2]
[333452358,1722137451882,-500.0,0.00013972,2]
[333452359,1722137451892,-500.0,0.00013972,2]
[333452360,1722137451902,-500.0,0.00013972,2]
[333452361,1722137451912,-500.0,0.00013972,2]
[333452362,1722137451922,-500.0,0.00013972,2]
[333452363,1722137451934,-500.0,0.00013972,2]
[333452364,1722137451943,-500.0,0.00013972,2]
[333452365,1722137451953,-500.0,0.00013972,2]
[333452366,1722137451963,-510.99316904,0.00013972,2]
[333452367,1722137451974,-500.0,0.00013972,2]
[333452368,1722137451983,-500.0,0.00013972,2]
[333452369,1722137451994,-500.0,0.00013972,2]
[333452370,1722137452004,-500.0,0.00013972,2]
[333452371,1722137452014,-500.0,0.00013972,2]
[333452372,1722137452024,-500.0,0.00013972,2]
[333452373,1722137452035,-500.0,0.00013972,2]
[333452374,1722137452044,-500.0,0.00013972,2]
[333452375,1722137452054,-500.0,0.00013972,2]
[333452376,1722137452065,-500.0,0.00013972,2]
[333452377,1722137452075,-522.23008723,0.00013972,2]
[333452378,1722137452085,-500.0,0.00013972,2]
[333452379,1722137452095,-513.59217313,0.00013972,2]
[333452380,1722137452105,-500.0,0.00013972,2]
[333452381,1722137452114,-500.0,0.00013972,2]
[333452382,1722137452124,-500.0,0.00013972,2]
[333452383,1722137452134,-500.0,0.00013972,2]
[333452384,1722137452144,-500.0,0.00013972,2]
[333452385,1722137452154,-500.0,0.00013972,2]
[333452386,1722137452163,-151.0,0.00013972,2]
[333452387,1722137452173,-151.0,0.00013972,2]
[333452388,1722137452183,-151.0,0.00013972,2]
[333452389,1722137452192,-500.0,0.00013972,2]
[333452390,1722137452202,-500.0,0.00013972,2]
[333452391,1722137452212,-351.802318,0.00013972,2]
[333452392,1722137452222,-351.802318,0.00013972,2]
[333452393,1722137452232,-500.0,0.00013972,2]
[333452394,1722137452241,-351.802318,0.00013972,2]
[333452395,1722137452251,-351.802318,0.00013972,2]
[333452396,1722137452261,-351.802318,0.00013972,2]
[333452397,1722137452270,-500.0,0.00013972,2]
[333452398,1722137452280,-152.581823,0.00013972,2]
[333452399,1722137452290,-500.0,0.00013972,2]
[333452400,1722137452300,-500.0,0.00013972,2]
[333452401,1722137452310,-500.0,0.00013972,2]
[333452402,1722137452320,-281.797539,0.00013972,2]
[333452403,1722137452330,-500.0,0.00013972,2]
[333452404,1722137452339,-281.797539,0.00013972,2]
[333452405,1722137452348,-281.797539,0.00013972,2]
[333452406,1722137452358,-500.0,0.00013972,2]
[333452407,1722137452368,-281.797539,0.00013972,2]
[333452408,1722137452378,-281.797539,0.00013972,2]
[333452409,1722137452387,-500.0,0.00013972,2]
[333452410,1722137452397,-281.797539,0.00013972,2]
[333452411,1722137452406,-759.77,0.00013972,2]
[333452412,1722137452416,-506.85273591,0.00013972,2]
[333452413,1722137452425,-500.0,0.00013972,2]
[333452414,1722137452434,-506.13943909,0.00013972,2]
[333452415,1722137452443,-500.0,0.00013972,2]
[333452416,1722137452453,-500.0,0.00013972,2]
[333452417,1722137452462,-500.0,0.00013972,2]
[333452418,1722137452472,-500.0,0.00013972,2]
[333452419,1722137452481,-500.0,0.00013972,2]
[333452420,1722137452491,-1117.58,0.00013972,2]
[333452421,1722137452500,-500.0,0.00013972,2]
[333452422,1722137452510,-500.0,0.00013972,2]
[333452423,1722137452519,-500.0,0.00013972,2]
[333452424,1722137452528,-500.0,0.00013972,2]
[333452425,1722137452540,-840.236966,0.00013972,2]
[333452426,1722137452550,-500.0,0.00013972,2]
[333452427,1722137452559,-840.236966,0.00013972,2]
[333452428,1722137452569,-500.0,0.00013972,2]
[333452429,1722137452579,-840.236966,0.00013972,2]
[333452430,1722137452588,-500.0,0.00013972,2]
[333452431,1722137452598,-500.0,0.00013972,2]
[333452432,1722137452609,-840.236966,0.00013972,2]
[333452433,1722137452619,-840.236966,0.00013972,2]
[333452434,1722137452628,-840.236966,0.00013972,2]
[333452435,1722137452638,-500.0,0.00013972,2]
[333452436,1722137452647,-500.0,0.00013972,2]
[333452437,1722137452657,-154.79978101,0.00013972,2]
[333452438,1722137452666,-151.0,0.00013972,2]
[333452439,1722137452676,-151.0,0.00013972,2]
[333452440,1722137452685,-500.0,0.00013972,2]
[333452441,1722137452700,-151.0,0.00013972,2]
[333452442,1722137452710,-500.0,0.00013972,2]
[333452443,1722137452719,-500.0,0.00013972,2]
[333452444,1722137452729,-500.0,0.00013972,2]
[333452445,1722137452738,-500.0,0.00013972,2]
[333452446,1722137452748,-505.48796229,0.00013972,2]
[333452447,1722137452758,-500.0,0.00013972,2]
[333452448,1722137452768,-501.95022458,0.00013972,2]
[333452449,1722137452778,-500.0,0.00013972,2]
[333452450,1722137452791,-500.0,0.00013972,2]
[333452451,1722137452800,-1400.935035,0.00013972,2]
[333452452,1722137452810,-1400.935035,0.00013972,2]
[333452453,1722137452820,-1400.935035,0.00013972,2]
[333452454,1722137452830,-500.0,0.00013972,2]
[333452455,1722137452840,-500.0,0.00013972,2]
[333452456,1722137452850,-500.0,0.00013972,2]
[333452457,1722137452859,-500.0,0.00013972,2]
[333452458,1722137452869,-1400.935035,0.00013972,2]
[333452459,1722137452879,-1400.935035,0.00013972,2]
[333452460,1722137452888,-1400.935035,0.00013972,2]
[333452461,1722137452898,-3595.12,0.00013972,2]
[333452462,1722137452907,-500.0,0.00013972,2]
[333452463,1722137452916,-500.0,0.00013972,2]
[333452464,1722137452926,-500.0,0.00013972,2]
[333452465,1722137452936,-500.0,0.00013972,2]
[333452466,1722137452946,-574.95342337,0.00013972,2]
[333452467,1722137452956,-500.0,0.00013972,2]
[333452468,1722137452966,-994.2,0.00013972,2]
[333452469,1722137452975,-1595.32,0.00013972,2]
[333452470,1722137452985,-500.0,0.00013972,2]
[333452471,1722137452995,-500.0,0.00013972,2]
[333452472,1722137453005,-550.04,0.00013972,2]
[333452473,1722137453014,-500.0,0.00013972,2]
[333452474,1722137453024,-500.0,0.00013972,2]
[333452475,1722137453036,-150.39464237,0.00013972,2]
[333452476,1722137453045,-500.0,0.00013972,2]
[333452477,1722137453055,-500.0,0.00013972,2]
[333452478,1722137453065,-500.0,0.00013972,2]
[333452479,1722137453074,-500.0,0.00013972,2]
[333452480,1722137453083,-369.19822,0.00013972,2]
[333452481,1722137453092,-369.19822,0.00013972,2]
[333452482,1722137453102,-500.0,0.00013972,2]
[333452483,1722137453112,-369.19822,0.00013972,2]
[333452484,1722137453121,-391.03832517,0.00013972,2]
[333452485,1722137453131,-369.19822,0.00013972,2]
[333452486,1722137453140,-369.19822,0.00013972,2]
[333452487,1722137453150,-369.19822,0.00013972,2]
[333452488,1722137453159,-500.0,0.00013972,2]
[333452489,1722137453169,-690.79,0.00013972,2]
[333452490,1722137453178,-500.0,0.00013972,2]
[333452491,1722137453187,-500.0,0.00013972,2]
[333452492,1722137453197,-500.0,0.00013972,2]
[333452493,1722137453206,-500.0,0.00013972,2]
[333452494,1722137453215,-500.0,0.00013972,2]
[333452495,1722137453225,-500.0,0.00013972,2]
[333452496,1722137453235,-500.0,0.00013972,2]
[333452497,1722137453244,-500.0,0.00013972,2]
[333452498,1722137453254,-502.87097973,0.00013972,2]
[333452499,1722137453264,-225.975726,0.00013972,2]
[333452500,1722137453273,-225.975726,0.00013972,2]
[333452501,1722137453285,-225.975726,0.00013972,2]
[333452502,1722137453294,-500.0,0.00013972,2]
[333452503,1722137453304,-500.0,0.00013972,2]
[333452504,1722137453313,-225.975726,0.00013972,2]
[333452505,1722137453322,-455.368596,0.00013972,2]
[333452506,1722137453332,-225.975726,0.00013972,2]
[333452507,1722137453341,-455.368596,0.00013972,2]
[333452508,1722137453352,-225.975726,0.00013972,2]
[333452509,1722137453447,-455.368596,0.00013972,2]
[333452510,1722137453456,-3236.58,0.00013972,2]
[333452511,1722137453467,-500.0,0.00013972,2]
[333452512,1722137453476,-455.368596,0.00013972,2]
[333452513,1722137453486,-500.0,0.00013972,2]
[333452514,1722137453495,-455.368596,0.00013972,2]
[333452515,1722137453504,-455.368596,0.00013972,2]
[333452516,1722137453513,-500.0,0.00013972,2]
[333452517,1722137453523,-500.0,0.00013972,2]
[333452518,1722137453535,-500.0,0.00013972,2]
[333452519,1722137453544,-500.0,0.00013972,2]
[333452520,1722137453553,-501.45064022,0.00013972,2]
[333452521,1722137453562,-500.0,0.00013972,2]
[333452522,1722137453571,-500.0,0.00013972,2]
[333452523,1722137453580,-975.54,0.00013972,2]
[333452524,1722137453590,-500.0,0.00013972,2]
[333452525,1722137453599,-500.0,0.00013972,2]
[333452526,1722137453609,-516.67,0.00013972,2]
[333452527,1722137453620,-500.0,0.00013972,2]
[333452528,1722137453631,-500.0,0.00013972,2]
[333452529,1722137453642,-1756.6,0.00013972,2]
[333452530,1722137453653,-888.528319,0.00013972,2]
[333452531,1722137453662,-500.0,0.00013972,2]
[333452532,1722137453672,-888.528319,0.00013972,2]
[333452533,1722137453683,-500.0,0.00013972,2]
[333452534,1722137453695,-888.528319,0.00013972,2]
[333452535,1722137453704,-500.0,0.00013972,2]
[333452536,1722137453714,-888.528319,0.00013972,2]
[333452537,1722137453723,-888.528319,0.00013972,2]
[333452538,1722137453735,-888.528319,0.00013972,2]
[333452539,1722137453744,-500.0,0.00013972,2]
[333452540,1722137453753,-500.0,0.00013972,2]
[333452541,1722137453763,-500.0,0.00013972,2]
[333452542,1722137453775,-500.0,0.00013972,2]
[333452543,1722137453786,-500.0,0.00013972,2]
[333452544,1722137453796,-500.0,0.00013972,2]
[333452545,1722137453805,-500.0,0.00013972,2]
[333452546,1722137453814,-500.0,0.00013972,2]
[333452547,1722137453824,-500.0,0.00013972,2]
[333452548,1722137453833,-500.0,0.00013972,2]
[333452549,1722137453842,-500.0,0.00013972,2]
[333452550,1722137453851,-500.0,0.00013972,2]
[333452551,1722137453860,-500.0,0.00013972,2]
[333452552,1722137453870,-500.0,0.00013972,2]
[333452553,1722137453879,-500.0,0.00013972,2]
[333452554,1722137453888,-500.0,0.00013972,2]
[333452555,1722137453898,-500.0,0.00013972,2]
[333452556,1722137453907,-545.13,0.00013972,2]
[333452557,1722137453916,-500.0,0.00013972,2]
[333452558,1722137453925,-500.0,0.00013972,2]
[333452559,1722137453934,-500.0,0.00013972,2]
[333452560,1722137453943,-500.0,0.00013972,2]
[333452561,1722137453952,-500.0,0.00013972,2]
[333452562,1722137453962,-500.0,0.00013972,2]
[333452563,1722137453972,-500.0,0.00013972,2]
[333452564,1722137453981,-504.18740093,0.00013972,2]
[333452565,1722137453990,-500.0,0.00013972,2]
[333452566,1722137453999,-641.95,0.00013972,2]
[333452567,1722137454009,-500.0,0.00013972,2]
[333452568,1722137454018,-500.0,0.00013972,2]
[333452569,1722137454028,-500.0,0.00013972,2]
[333452570,1722137454038,-500.0,0.00013972,2]
[333452571,1722137454047,-907.98,0.00013972,2]
[333452572,1722137454058,-500.0,0.00013972,2]
[333452573,1722137454067,-576.980202,0.00013972,2]
[333452574,1722137454077,-576.980202,0.00013972,2]
[333452575,1722137454086,-576.980202,0.00013972,2]
[333452576,1722137454096,-502.11512122,0.00013972,2]
[333452577,1722137454105,-500.0,0.00013972,2]
[333452578,1722137454114,-576.980202,0.00013972,2]
[333452579,1722137454123,-576.980202,0.00013972,2]
[333452580,1722137454132,-576.980202,0.00013972,2]
[333452581,1722137454141,-500.0,0.00013972,2]
[333452582,1722137454151,-500.0,0.00013972,2]
[333452583,1722137454160,-1088.68,0.00013972,2]
[333452584,1722137454169,-500.0,0.00013972,2]
[333452585,1722137454178,-500.0,0.00013972,2]
[333452586,1722137454187,-500.0,0.00013972,2]
[333452587,1722137454197,-500.0,0.00013972,2]
[333452588,1722137454206,-500.0,0.00013972,2]
[333452589,1722137454216,-510.54660775,0.00013972,2]
[333452590,1722137454225,-150.112233,0.00014,2]
[333452591,1722137454235,-1400.935035,0.00014,2]
[333452592,1722137454244,-1400.935035,0.00014,2]
[333452593,1722137454256,-601.0,0.00014,2]
[333452594,1722137454265,-634.38806162,0.00014024,2]
[333452595,1722137454274,-155.0,0.000141,2]
[333452596,1722137454284,-150.112233,0.000141,2]
[333452597,1722137454294,-153.0,0.00014134,2]
[333452598,1722137454304,-227.23394309,0.00014144,2]
[333452599,1722137454313,-303.66313787,0.00014144,2]
[333452600,1722137454323,-561.85,0.00014222,2]
[333452601,1722137454335,-561.85,0.00014222,2]
[333452602,1722137454345,-561.85,0.00014222,2]
[333452603,1722137454354,-561.85,0.00014222,2]
[333452604,1722137454365,-561.85,0.00014222,2]
[333452605,1722137454375,-561.85,0.00014222,2]
[333452606,1722137454384,-561.85,0.00014222,2]
[333452607,1722137454393,-561.85,0.00014222,2]
[333452608,1722137454403,-561.85,0.00014222,2]
[333452609,1722137454412,-561.85,0.00014222,2]
[333452610,1722137454422,-561.85,0.00014222,2]
[333452611,1722137454431,-561.85,0.00014222,2]
[333452612,1722137454441,-561.85,0.00014222,2]
[333452613,1722137454451,-561.85,0.00014222,2]
[333452614,1722137454460,-561.85,0.00014222,2]
[333452615,1722137454470,-561.85,0.00014222,2]
[333452616,1722137454480,-561.85,0.00014222,2]
[333452617,1722137454490,-561.85,0.00014222,2]
[333452618,1722137454501,-561.85,0.00014222,2]
[333452619,1722137454512,-561.85,0.00014222,2]
[333452620,1722137454523,-561.85,0.00014222,2]
[333452621,1722137454537,-561.85,0.00014222,2]
[333452622,1722137454549,-561.85,0.00014222,2]
[333452623,1722137454559,-561.94,0.00014222,2]
[333452624,1722137454571,-151.0,0.00014222,2]
[333452625,1722137454581,-151.0,0.00014222,2]
[333452626,1722137454591,-351.802318,0.00014222,2]
[333452627,1722137454600,-351.802318,0.00014222,2]
[333452628,1722137454609,-281.797539,0.00014222,2]
[333452629,1722137454618,-281.797539,0.00014222,2]
[333452630,1722137454628,-840.236966,0.00014222,2]
[333452631,1722137454638,-840.236966,0.00014222,2]
[333452632,1722137454647,-154.563825,0.00014222,2]
[333452633,1722137454657,-369.19822,0.00014224,2]
[333452634,1722137454668,-369.198222,0.00014224,2]
[333452635,1722137454678,-225.975726,0.00014224,2]
[333452636,1722137454688,-225.975735,0.00014224,2]
[333452637,1722137454702,-455.368596,0.00014224,2]
[333452638,1722137454712,-455.368588,0.00014224,2]
[333452639,1722137454722,-888.528319,0.00014224,2]
[333452640,1722137454732,-888.528321,0.00014224,2]
[333452641,1722137454743,-576.980202,0.00014224,2]
[333452642,1722137454755,-576.980196,0.00014224,2]
[333452643,1722137454765,-151.0,0.00014225,2]
[333452644,1722137454775,-500.0,0.00014235,2]
[333452645,1722137454787,-500.0,0.00014235,2]
[333452646,1722137454796,-1400.935035,0.00014235,2]
[333452647,1722137454806,-1400.935035,0.00014235,2]
[333452648,1722137454816,-157.265855,0.00014236,2]
[333452649,1722137454826,-151.0,0.00014236,2]
[333452650,1722137454836,-500.0,0.00014245,2]
[333452651,1722137454847,-274.80192911,0.00014246,2]
[333452652,1722137454856,-500.0,0.00014246,2]
[333452653,1722137454867,-500.0,0.00014246,2]
[333452654,1722137454877,-511.91168142,0.00014246,2]
[333452655,1722137454886,-505.16719484,0.00014246,2]
[333452656,1722137454895,-544.16,0.00014246,2]
[333452657,1722137454904,-505.19608975,0.00014246,2]
[333452658,1722137454913,-332.74938263,0.00014246,2]
[333452659,1722137454922,-500.0,0.00014246,2]
[333452660,1722137454932,-500.0,0.00014246,2]
[333452661,1722137454941,-504.96702403,0.00014246,2]
[333452662,1722137454951,-500.0,0.00014246,2]
[333452663,1722137454963,-500.0,0.00014246,2]
[333452664,1722137454972,-500.0,0.00014246,2]
[333452665,1722137454982,-500.0,0.00014246,2]
[333452666,1722137454992,-500.0,0.00014246,2]
[333452667,1722137455002,-500.0,0.00014246,2]
[333452668,1722137455011,-500.0,0.00014246,2]
[333452669,1722137455020,-500.0,0.00014246,2]
[333452670,1722137455030,-500.0,0.00014246,2]
[333452671,1722137455042,-627.77672759,0.00014246,2]
[333452672,1722137455051,-501.53001707,0.00014246,2]
[333452673,1722137455061,-500.0,0.00014246,2]
[333452674,1722137455070,-500.0,0.00014246,2]
[333452675,1722137455080,-505.70084917,0.00014246,2]
[333452676,1722137455089,-500.0,0.00014246,2]
[333452677,1722137455098,-500.0,0.00014246,2]
[333452678,1722137455108,-500.0,0.00014246,2]
[333452679,1722137455117,-500.0,0.00014246,2]
[333452680,1722137455126,-500.0,0.00014246,2]
[333452681,1722137455136,-500.0,0.00014246,2]
[333452682,1722137455145,-513.64353173,0.00014246,2]
[333452683,1722137455155,-505.08259757,0.00014246,2]
[333452684,1722137455164,-507.59657925,0.00014246,2]
[333452685,1722137455173,-500.0,0.00014246,2]
[333452686,1722137455183,-500.0,0.00014246,2]
[333452687,1722137455192,-500.0,0.00014246,2]
[333452688,1722137455202,-1357.7,0.00014246,2]
[333452689,1722137455212,-500.0,0.00014246,2]
[333452690,1722137455221,-381.33518802,0.00014246,2]
[333452691,1722137504512,170.05998711,0.0001,2]
[333452692,1722137514872,66.65851989,0.0001,2]
[333452693,1722137514893,93.09364511,0.0001,2]
[333452694,1722137981620,-200.81187363,9.999e-05,2]
[333452695,1722137981645,-231.40661786,9.999e-05,2]
[333452696,1722137981669,-942.05026838,9.999e-05,2]
[333452697,1722137981694,-300.0,9.999e-05,2]
[333452698,1722137981718,-262.0,9.999e-05,2]
[333452699,1722137981742,-1652.49101254,0.0001,2]
[333452700,1722137981767,-4140.06892891,0.0001,2]
[333452701,1722137981791,-154.82903806,0.0001,2]
[333452702,1722137981815,-151.43964963,0.0001,2]
[333452703,1722137981839,-190.4105277,0.0001,2]
[333452704,1722137981864,-179.2846818,0.0001,2]
[333452705,1722137981889,-164.40616402,0.0001,2]
[333452706,1722137981914,-164.7984,0.0001,2]
[333452707,1722137981939,-200.0,0.0001,2]
[333452708,1722137981962,-150.94250287,0.0001,2]
[333452709,1722137981987,-446.99,0.00010959,2]
[333452710,1722137982011,-316.0,0.00010999,2]
[333452711,1722137982036,-188.571762,0.00012119,2]
[333452712,1722137982060,-188.571762,0.0001275,2]
[333452713,1722137982084,-215.83526469,0.00013424,2]
[333452714,1722137982109,-171.204498,0.00013425,2]
[333452715,1722137982133,-2000.0,0.00013598,2]
[333452716,1722137982156,-150.112233,0.000136,2]
[333452717,1722137982181,-997.61857414,0.00013688,2]
[333452718,1722137982205,-500.0,0.00013698,2]
[333452719,1722137982228,-503.40268756,0.00013698,2]
[333452720,1722137982253,-500.0,0.00013698,2]
[333452721,1722137982276,-500.0,0.00013698,2]
[333452722,1722137982299,-500.0,0.00013698,2]
[333452723,1722137982323,-500.0,0.00013698,2]
[333452724,1722137982348,-500.0,0.00013698,2]
[333452725,1722137982374,-500.0,0.00013698,2]
[333452726,1722137982397,-500.0,0.00013698,2]
[333452727,1722137982420,-506.57160067,0.00013698,2]
[333452728,1722137982449,-500.0,0.00013698,2]
[333452729,1722137982476,-500.0,0.00013698,2]
[333452730,1722137982502,-151.0,0.00013698,2]
[333452731,1722137982527,-151.821504,0.00013698,2]
[333452732,1722137982552,-500.0,0.00013698,2]
[333452733,1722137982578,-500.0,0.00013698,2]
[333452734,1722137982736,-503.04884842,0.00013698,2]
[333452735,1722137982763,-512.5147954,0.00013698,2]
[333452736,1722137982787,-500.0,0.00013698,2]
[333452737,1722137982810,-500.0,0.00013698,2]
[333452738,1722137982834,-500.0,0.00013698,2]
[333452739,1722137982859,-217.27111719,0.00013698,2]
[333452740,1722137982884,-500.0,0.00013698,2]
[333452741,1722137982909,-502.2927965,0.00013698,2]
[333452742,1722137982933,-1187.98,0.00013698,2]
[333452743,1722137982958,-500.0,0.00013698,2]
[333452744,1722137982981,-504.65697561,0.00013698,2]
[333452745,1722137983005,-509.94503364,0.00013698,2]
[333452746,1722137983029,-500.0,0.00013698,2]
[333452747,1722137983053,-500.0,0.00013698,2]
[333452748,1722137983077,-500.0,0.00013698,2]
[333452749,1722137983101,-500.0,0.00013698,2]
[333452750,1722137983126,-500.0,0.00013698,2]
[333452751,1722137983153,-500.0,0.00013698,2]